bitfinex/quotes_SOLUSD_20251030
["timestamp","ask_amount","ask_price","bid_price","bid_amount"]
[1761824584501,2.08167523,192.28,192.25,67.28148897]
[1761824585093,2.08167523,192.3,192.26,0.68]
[1761824585711,2.74167523,192.3,192.26,0.68]
[1761824586211,2.08167523,192.3,192.26,0.68]
[1761824586706,2.08167523,192.28,192.25,66.60148897]
[1761824586891,0.66,192.29,192.25,66.60148897]
[1761824587085,2.08167523,192.28,192.25,67.28148897]
[1761824587287,2.74167523,192.29,192.25,67.28148897]
[1761824589121,2.08167523,192.29,192.25,66.60148897]
[1761824589282,0.86,192.31,192.26,0.68]
[1761824589621,2.08167523,192.29,192.26,0.68]
[1761824590095,0.66,192.28,192.25,66.60148897]
[1761824590287,2.74167523,192.28,192.25,66.60148897]
[1761824591007,5.39994764,192.31,192.21,74.40656248]
[1761824591008,2.08167523,192.26,192.21,74.40656248]
[1761824591183,2.08167523,192.25,192.21,74.40656248]
[1761824591696,2.08167523,192.3,192.2,2.76167523]
[1761824591697,2.08167523,192.23,192.2,61.39999999]
[1761824592085,5.20088534,192.28,192.2,62.07999999]
[1761824592307,2.08167523,192.24,192.2,62.07999999]
[1761824592506,2.08167523,192.24,192.21,5.20259964]
[1761824592713,2.08167523,192.24,192.21,5.88259964]
[1761824593088,0.66,192.26,192.21,5.88259964]
[1761824593295,2.08167523,192.25,192.21,5.88259964]
[1761824593714,2.80167523,192.25,192.21,5.88259964]
[1761824594299,2.08167523,192.24,192.21,5.88259964]
[1761824595115,0.72,192.25,192.21,5.88259964]
[1761824595415,2.08167523,192.24,192.21,5.88259964]
[1761824595816,18.57571574,192.3,192.2,66.60285837]
[1761824595817,2.80167523,192.23,192.2,66.60285837]
[1761824596016,2.08167523,192.22,192.2,66.60285837]
[1761824597320,0.72,192.23,192.2,66.60285837]
[1761824597321,2.80167523,192.23,192.2,66.60285837]
[1761824597713,2.08167523,192.25,192.21,0.67]
[1761824598303,5.20027762,192.3,192.22,7.28404751]
[1761824598506,2.08167523,192.29,192.23,11.87050292]
[1761824598818,22.67367523,192.3,192.24,2.08167523]
[1761824599015,22.67367523,192.3,192.24,2.75167523]
[1761824599205,22.67367523,192.3,192.25,0.67]
[1761824599401,3.00167523,192.31,192.26,2.08167523]
[1761824599609,0.72,192.3,192.26,64.15167522]
[1761824599995,2.80167523,192.3,192.26,62.06999999]
[1761824600210,2.80167523,192.3,192.26,66.60106257]
[1761824600439,2.80167523,192.29,192.26,66.60106257]
[1761824602148,2.08167523,192.3,192.26,67.27106257]
[1761824602329,2.80167523,192.3,192.26,67.27106257]
[1761824604237,2.08167523,192.29,192.26,62.06999999]
[1761824604444,2.08167523,192.28,192.26,66.60125914]
[1761824604640,2.75167523,192.28,192.26,66.60125914]
[1761824605942,2.08167523,192.28,192.26,66.60125914]
[1761824608733,2.08167523,192.28,192.26,61.39999999]
[1761824608933,2.80167523,192.28,192.26,61.39999999]
[1761824609143,2.80167523,192.28,192.26,66.60123872]
[1761824610030,2.80167523,192.27,192.22,61.92023721]
[1761824610230,2.08167523,192.24,192.22,66.60224847]
[1761824610431,2.08167523,192.24,192.22,67.26224847]
[1761824611135,2.08167523,192.25,192.22,67.26224847]
[1761824612850,2.80167523,192.26,192.22,67.26224847]
[1761824614734,2.80167523,192.26,192.23,0.66]
[1761824615253,2.08167523,192.26,192.24,5.20183104]
[1761824615446,0.72,192.3,192.25,3.25119613]
[1761824615646,3.97119613,192.3,192.25,0.66]
[1761824615844,3.97119613,192.3,192.26,0.66]
[1761824616030,3.97119613,192.3,192.26,62.05999999]
[1761824616647,3.25119613,192.27,192.26,61.39999999]
[1761824616845,3.25119613,192.28,192.26,61.39999999]
[1761824617448,3.97119613,192.28,192.26,61.39999999]
[1761824618339,3.97119613,192.28,192.26,66.60123929]
[1761824618874,3.25119613,192.27,192.26,66.60123929]
[1761824619857,3.25119613,192.27,192.26,61.39999999]
[1761824620155,3.97119613,192.28,192.26,61.39999999]
[1761824620539,3.97119613,192.28,192.24,67.2618002]
[1761824621747,3.25119613,192.27,192.24,66.6018002]
[1761824621948,3.97119613,192.27,192.24,66.6018002]
[1761824622263,3.25119613,192.27,192.24,67.2618002]
[1761824622663,0.72,192.29,192.25,0.66]
[1761824622956,3.25119613,192.27,192.24,66.6018002]
[1761824623336,3.97119613,192.27,192.24,66.6018002]
[1761824623757,3.25119613,192.27,192.24,67.2618002]
[1761824624865,3.25119613,192.27,192.24,66.6018002]
[1761824625050,3.25119613,192.27,192.25,5.86134629]
[1761824625368,3.25119613,192.28,192.25,5.86134629]
[1761824626238,3.25119613,192.3,192.26,0.66]
[1761824626459,0.2,192.31,192.27,13.04002382]
[1761824626656,0.2,192.31,192.28,3.25119613]
[1761824626840,0.2,192.31,192.29,3.91119613]
[1761824627036,0.2,192.31,192.3,5.200208]
[1761824627238,0.2,192.31,192.3,67.26020799]
[1761824627666,0.2,192.31,192.3,62.05999999]
[1761824627980,3.45119613,192.31,192.3,61.39999999]
[1761824628838,3.45119613,192.31,192.3,66.60020799]
[1761824629663,0.2,192.31,192.3,67.26020799]
[1761824632954,4.00811521,192.34,192.3,67.26020799]
[1761824634253,3.28811521,192.34,192.31,0.7]
[1761824634450,0.03691908,192.34,192.31,0.7]
[1761824634654,0.03691908,192.34,192.31,65.35119612]
[1761824634854,0.03691908,192.34,192.32,0.7]
[1761824635066,0.03691908,192.34,192.33,5.19939686]
[1761824635366,0.03691908,192.34,192.32,0.7]
[1761824636171,0.03691908,192.34,192.32,5.89961553]
[1761824636549,0.03691908,192.34,192.33,0.7]
[1761824636948,0.03691908,192.34,192.33,77.08822454]
[1761824637259,0.03691908,192.34,192.33,80.33942067]
[1761824643955,3.25119613,192.41,192.35,9.78882769]
[1761824644275,0.2,192.42,192.37,13.04002382]
[1761824644449,0.2,192.42,192.38,3.25119613]
[1761824644762,3.45119613,192.42,192.38,0.7]
[1761824644954,4.17119613,192.42,192.38,0.7]
[1761824645159,4.17119613,192.42,192.38,62.06308091]
[1761824645160,0.92,192.42,192.38,62.06308091]
[1761824645365,4.17119613,192.42,192.38,62.06308091]
[1761824645575,4.17119613,192.42,192.39,5.19777535]
[1761824645760,4.17119613,192.42,192.39,66.56085626]
[1761824645963,3.25119613,192.4,192.39,61.36308091]
[1761824646369,3.97119613,192.4,192.39,61.36308091]
[1761824647860,3.25119613,192.4,192.39,61.36308091]
[1761824649271,3.97119613,192.4,192.39,61.36308091]
[1761824650686,9.16870132,192.4,192.39,61.36308091]
[1761824651059,9.16870132,192.4,192.34,66.56213409]
[1761824651275,3.25119613,192.36,192.34,66.56213409]
[1761824652389,3.25119613,192.36,192.34,67.26213409]
[1761824652686,0.72,192.37,192.34,67.26213409]
[1761824652878,3.25119613,192.37,192.34,67.26213409]
[1761824653375,3.97119613,192.37,192.34,66.56213409]
[1761824653775,3.97119613,192.37,192.34,67.26213409]
[1761824654394,3.25119613,192.37,192.34,67.26213409]
[1761824655293,0.71,192.39,192.34,67.26213409]
[1761824655294,3.25119613,192.39,192.35,0.69]
[1761824655767,3.25119613,192.39,192.35,62.05308091]
[1761824656289,3.25119613,192.39,192.36,0.69]
[1761824657174,3.25119613,192.39,192.37,5.19831574]
[1761824657585,3.25119613,192.39,192.37,5.88831574]
[1761824658987,3.25119613,192.41,192.38,0.69]
[1761824659193,3.25119613,192.41,192.38,62.05308091]
[1761824659772,3.96119613,192.41,192.38,61.36308091]
[1761824659972,3.96119613,192.41,192.38,62.05308091]
[1761824660293,3.25119613,192.4,192.38,61.36308091]
[1761824660694,3.25119613,192.4,192.38,66.56112623]
[1761824660995,0.2,192.42,192.38,61.36308091]
[1761824660996,3.96119613,192.39,192.38,61.36308091]
[1761824662397,9.15897148,192.39,192.38,61.36308091]
[1761824663398,3.96119613,192.39,192.38,61.36308091]
[1761824663573,9.15897148,192.39,192.38,61.36308091]
[1761824664494,9.15897148,192.39,192.34,61.36308091]
[1761824664794,3.25119613,192.35,192.34,66.56220745]
[1761824665283,3.97119613,192.35,192.34,66.56220745]
[1761824665681,3.25119613,192.35,192.34,66.56220745]
[1761824666781,3.25119613,192.35,192.34,61.36308091]
[1761824666985,3.97119613,192.35,192.34,61.36308091]
[1761824668071,3.25119613,192.35,192.34,61.36308091]
[1761824677284,2.07945743,192.35,192.34,61.36308091]
[1761824682016,2.07945743,192.37,192.34,67.21220031]
[1761824682217,2.07945743,192.37,192.35,0.65]
[1761824682520,2.07945743,192.37,192.34,66.56220031]
[1761824682679,0.14216157,192.46,192.34,66.56220031]
[1761824682680,2.07945743,192.41,192.36,9.78882769]
[1761824683006,12.99038183,192.46,192.37,5.19831574]
[1761824683007,2.27945743,192.42,192.37,5.19831574]
[1761824683182,2.27945743,192.42,192.38,0.65]
[1761824683392,0.2,192.42,192.39,9.78882769]
[1761824683695,0.2,192.42,192.4,0.65]
[1761824683911,0.2,192.42,192.4,62.01308091]
[1761824684279,0.2,192.42,192.4,61.36308091]
[1761824684598,0.2,192.42,192.41,0.65]
[1761824685109,0.2,192.42,192.41,5.84723507]
[1761824685315,0.2,192.42,192.41,0.65]
[1761824686316,0.2,192.42,192.41,5.84723507]
[1761824691122,0.2,192.42,192.41,76.99914367]
[1761824691498,0.2,192.42,192.41,15.63606276]
[1761824693990,0.2,192.42,192.41,5.19723507]
[1761824694397,0.2,192.42,192.41,5.90723507]
[1761824696796,0.2,192.42,192.41,67.27031598]
[1761824699527,0.2,192.42,192.41,77.57886717]
[1761824700627,0.2,192.42,192.41,77.05914367]
[1761824701727,0.2,192.42,192.41,76.34914367]
[1761824701926,0.2,192.42,192.41,66.56031598]
[1761824702226,0.2,192.42,192.41,67.27031598]
[1761824703219,0.2,192.42,192.41,77.05914367]
[1761824704239,1e-08,192.42,192.41,77.05914367]
[1761824704421,0.2,192.5,192.46,9.78882769]
[1761824704744,0.2,192.5,192.48,9.78882769]
[1761824704905,0.2,192.5,192.49,10.49882769]
[1761824705329,0.2,192.5,192.48,9.78882769]
[1761824705652,0.2,192.5,192.47,9.78882769]
[1761824705857,0.86,192.5,192.47,9.78882769]
[1761824706360,0.66,192.49,192.46,61.3630809]
[1761824706657,0.66,192.49,192.43,62.0730809]
[1761824707454,0.66,192.49,192.44,5.19619732]
[1761824708325,5.85513661,192.49,192.44,5.19619732]
[1761824708527,0.66,192.49,192.44,5.19619732]
[1761824708727,0.66,192.48,192.44,5.19619732]
[1761824708928,0.2,192.5,192.45,10.49882769]
[1761824709341,0.2,192.5,192.47,9.78882769]
[1761824709543,0.2,192.5,192.48,5.19534497]
[1761824709935,0.2,192.5,192.48,5.90534497]
[1761824710843,0.2,192.5,192.48,5.19534497]
[1761824711057,0.2,192.5,192.48,5.90534497]
[1761824711945,0.66,192.49,192.47,76.34746719]
[1761824712263,0.2,192.5,192.47,76.34746719]
[1761824712264,0.2,192.5,192.47,77.05746719]
[1761824713634,0.2,192.5,192.48,0.71]
[1761824713855,0.2,192.5,192.49,5.19507506]
[1761824714046,0.2,192.5,192.49,5.90507506]
[1761824716666,0.85,192.5,192.48,5.19528709]
[1761824716971,0.2,192.5,192.48,5.88528709]
[1761824717534,0.2,192.5,192.49,0.69]
[1761824717736,0.2,192.51,192.5,70.95190859]
[1761824717962,0.2,192.51,192.5,76.14671378]
[1761824718171,0.2,192.51,192.5,76.83671378]
[1761824720747,0.85,192.51,192.5,66.35788609]
[1761824720950,0.85,192.51,192.5,61.1630809]
[1761824723239,0.2,192.51,192.5,61.1630809]
[1761824723458,0.86,192.51,192.5,61.1630809]
[1761824723644,0.2,192.51,192.5,61.1630809]
[1761824723992,0.86,192.51,192.5,61.1630809]
[1761824724271,0.2,192.51,192.5,67.06788609]
[1761824724456,0.2,192.51,192.5,76.85671378]
[1761824729178,0.2,192.53,192.51,70.75190859]
[1761824729360,0.2,192.53,192.51,71.46190859]
[1761824729861,0.2,192.53,192.52,10.49882769]
[1761824730065,0.2,192.53,192.52,71.46190859]
[1761824731295,0.2,192.53,192.52,76.65617412]
[1761824733192,0.2,192.53,192.52,75.94617412]
[1761824735883,0.2,192.53,192.52,66.15734643]
[1761824737470,0.86,192.53,192.5,60.9630809]
[1761824737886,0.66,192.52,192.5,60.9630809]
[1761824738601,0.66,192.52,192.48,5.19534497]
[1761824739572,0.2,192.53,192.49,10.49882769]
[1761824740076,0.2,192.53,192.51,9.78882769]
[1761824740507,0.2,192.53,192.52,10.49882769]
[1761824741796,0.2,192.53,192.52,15.69309322]
[1761824743686,0.2,192.53,192.52,76.65617412]
[1761824747813,0.2,192.53,192.52,75.94617412]
[1761824748210,0.2,192.53,192.52,76.65617412]
[1761824749610,0.66,192.56,192.54,5.19372597]
[1761824749810,0.66,192.57,192.54,65.95680687]
[1761824751816,0.66,192.57,192.54,78.94112181]
[1761824752436,0.66,192.59,192.55,9.78882769]
[1761824752608,0.7,192.6,192.56,0.69]
[1761824752800,0.7,192.6,192.56,60.7630809]
[1761824753399,0.2,192.61,192.57,0.69]
[1761824753635,0.9,192.61,192.57,0.69]
[1761824753798,0.9,192.61,192.58,5.19264721]
[1761824754197,0.2,192.61,192.59,0.69]
[1761824755809,0.2,192.61,192.59,5.88218789]
[1761824757921,0.7,192.6,192.58,60.7630809]
[1761824758323,0.7,192.6,192.55,75.74534691]
[1761824758538,0.7,192.6,192.55,76.43534691]
[1761824758719,0.7,192.6,192.55,75.74534691]
[1761824758918,0.2,192.61,192.56,0.69]
[1761824759322,0.9,192.61,192.56,0.69]
[1761824760040,0.2,192.61,192.57,5.19291686]
[1761824760410,0.2,192.61,192.58,10.99809241]
[1761824760615,0.2,192.61,192.6,20.592]
[1761824760944,0.2,192.61,192.6,81.87429169]
[1761824761115,0.2,192.61,192.6,82.56429169]
[1761824761854,0.2,192.61,192.6,60.7630809]
[1761824762339,0.9,192.61,192.6,60.7630809]
[1761824762710,0.2,192.61,192.6,60.7630809]
[1761824763328,0.9,192.61,192.6,60.7630809]
[1761824764037,0.2,192.61,192.6,60.7630809]
[1761824764612,0.2,192.61,192.6,61.4530809]
[1761824764838,0.2,192.61,192.6,60.7630809]
[1761824765826,0.2,192.61,192.6,61.4530809]
[1761824766254,0.2,192.61,192.6,60.7630809]
[1761824766748,0.2,192.61,192.6,61.4530809]
[1761824769076,0.2,192.61,192.6,60.7630809]
[1761824769952,0.2,192.61,192.6,61.4530809]
[1761824771024,0.2,192.61,192.6,76.95322737]
[1761824771226,0.7,192.67,192.64,60.3630809]
[1761824771430,0.2,192.7,192.64,60.3630809]
[1761824771647,0.7,192.68,192.64,60.3630809]
[1761824773040,0.7,192.68,192.64,61.0530809]
[1761824774033,0.7,192.68,192.64,60.3630809]
[1761824775532,5.89004592,192.68,192.64,60.3630809]
[1761824776062,0.68,192.67,192.64,60.3630809]
[1761824776467,5.87022897,192.67,192.64,60.3630809]
[1761824776839,0.68,192.66,192.64,60.3630809]
[1761824778045,5.87056811,192.66,192.64,60.3630809]
[1761824778549,0.68,192.65,192.64,60.3630809]
[1761824781846,0.2,192.7,192.65,9.78882769]
[1761824782158,0.2,192.7,192.65,21.312]
[1761824782460,0.2,192.7,192.66,0.72]
[1761824785847,0.87,192.7,192.63,1.23912993]
[1761824786044,0.87,192.7,192.64,10.50882769]
[1761824786348,0.2,192.7,192.65,0.72]
[1761824787162,0.87,192.7,192.65,0.72]
[1761824787648,0.87,192.7,192.65,61.0830809]
[1761824787967,0.67,192.69,192.65,60.3630809]
[1761824788169,5.85968291,192.69,192.65,60.3630809]
[1761824788544,0.67,192.68,192.59,90.74390859]
[1761824788751,0.67,192.68,192.59,70.15190859]
[1761824788752,6.16458782,192.68,192.59,70.15190859]
[1761824788957,2.26256268,192.67,192.59,60.3630809]
[1761824789155,2.93256268,192.67,192.59,60.3630809]
[1761824789345,3.90202514,192.66,192.59,60.3630809]
[1761824789545,2.26256268,192.65,192.56,60.3630809]
[1761824789772,5.1910299,192.64,192.56,60.3630809]
[1761824789960,5.1910299,192.64,192.56,0.72]
[1761824789961,9.09305504,192.64,192.56,0.72]
[1761824790159,0.67,192.63,192.56,0.72]
[1761824791067,3.23038571,192.62,192.53,10.50882769]
[1761824791264,5.49458782,192.62,192.53,0.72]
[1761824791459,0.67,192.61,192.53,0.72]
[1761824791770,23.66696579,192.6,192.52,60.3630809]
[1761824791975,23.66696579,192.6,192.51,9.78882769]
[1761824792146,0.67,192.59,192.51,10.50882769]
[1761824792347,0.67,192.59,192.52,0.72]
[1761824793955,5.86240159,192.59,192.52,0.72]
[1761824794358,0.67,192.59,192.52,0.72]
[1761824794574,0.67,192.59,192.52,61.0830809]
[1761824795379,5.86241517,192.59,192.52,61.0830809]
[1761824795757,5.49458782,192.6,192.53,0.86216157]
[1761824795958,0.2,192.7,192.56,9.78882769]
[1761824796262,16.27833485,192.69,192.59,20.592]
[1761824796459,0.2,192.7,192.61,0.14216157]
[1761824796666,0.2,192.7,192.63,0.14216157]
[1761824796991,0.2,192.7,192.64,0.51910299]
[1761824797157,0.2,192.7,192.64,1.23910299]
[1761824797554,0.2,192.7,192.65,0.72]
[1761824797971,0.87,192.7,192.65,0.72]
[1761824800288,0.67,192.69,192.65,0.72]
[1761824800963,0.67,192.69,192.61,9.78882769]
[1761824800964,0.67,192.69,192.61,0.86216157]
[1761824801155,0.67,192.69,192.62,0.72]
[1761824801597,5.18995225,192.68,192.6,21.11121079]
[1761824801761,5.18995225,192.68,192.6,21.83121079]
[1761824801964,0.67,192.67,192.6,81.6750809]
[1761824802772,0.67,192.67,192.61,0.72]
[1761824803186,21.462,192.7,192.61,0.72]
[1761824803390,0.67,192.69,192.61,0.72]
[1761824803701,5.85978356,192.69,192.61,0.72]
[1761824804887,0.67,192.68,192.61,0.72]
[1761824805293,0.67,192.68,192.61,61.0830809]
[1761824806087,0.67,192.68,192.61,60.3630809]
[1761824806283,0.67,192.68,192.62,0.72]
[1761824806490,36.39952282,192.7,192.62,0.72]
[1761824806688,0.67,192.69,192.62,0.72]
[1761824806902,5.85968302,192.69,192.62,0.72]
[1761824808422,0.67,192.69,192.62,0.72]
[1761824811198,0.67,192.69,192.62,61.0830809]
[1761824811621,0.67,192.69,192.63,0.72]
[1761824812694,0.2,192.7,192.64,0.66126456]
[1761824812908,0.2,192.7,192.66,20.592]
[1761824813108,0.2,192.7,192.67,0.71]
[1761824813316,0.2,192.7,192.68,0.51899522]
[1761824813697,0.2,192.7,192.69,0.71]
[1761824817014,0.2,192.7,192.69,61.0730809]
[1761824821635,0.2,192.7,192.69,60.3630809]
[1761824821924,0.9,192.7,192.69,60.3630809]
[1761824822425,0.2,192.7,192.69,60.3630809]
[1761824822625,0.2,192.7,192.69,61.0730809]
[1761824823030,0.2,192.7,192.69,60.3630809]
[1761824824315,0.9,192.7,192.69,60.3630809]
[1761824824513,0.2,192.7,192.69,60.3630809]
[1761824825116,0.2,192.7,192.69,61.0730809]
[1761824826525,0.2,192.7,192.69,60.3630809]
[1761824827344,0.2,192.7,192.69,61.0730809]
[1761824829846,25.93000589,192.83,192.66,20.592]
[1761824829847,4.56650157,192.9,192.73,15.61]
[1761824830049,0.2,192.9,192.82,0.14216157]
[1761824830219,0.2,192.9,192.88,20.592]
[1761824830547,0.2,192.9,192.84,20.592]
[1761824830734,0.2,192.9,192.85,0.71]
[1761824831740,0.2,192.9,192.86,20.592]
[1761824832044,0.2,192.9,192.86,0.14216157]
[1761824832244,0.2,192.9,192.87,0.71]
[1761824832430,0.2,192.9,192.86,0.14216157]
[1761824832630,0.2,192.9,192.85,21.11053772]
[1761824832631,0.9,192.9,192.85,20.592]
[1761824833022,0.9,192.9,192.86,0.71]
[1761824833023,0.2,192.9,192.86,0.71]
[1761824834958,0.2,192.9,192.86,62.31]
[1761824835657,0.2,192.9,192.86,62.26]
[1761824836160,0.88,192.9,192.86,62.26]
[1761824836763,0.68,192.89,192.86,61.6]
[1761824837333,0.2,192.9,192.86,61.6]
[1761824837334,0.2,192.9,192.87,0.66]
[1761824839140,0.2,192.9,192.88,0.14216157]
[1761824839344,0.2,192.9,192.88,61.6]
[1761824839554,0.2,192.9,192.88,62.26]
[1761824840146,0.2,192.9,192.88,61.6]
[1761824840346,0.2,192.9,192.89,0.66]
[1761824843060,0.2,192.9,192.88,56.91149556]
[1761824846057,0.85,192.9,192.88,56.91149556]
[1761824846460,0.2,192.9,192.88,56.91149556]
[1761824846656,0.2,192.9,192.88,57.61149556]
[1761824847162,0.2,192.9,192.88,56.91149556]
[1761824847842,0.2,192.9,192.88,57.61149556]
[1761824848655,0.2,192.9,192.88,56.91149556]
[1761824849349,0.2,192.9,192.88,57.61149556]
[1761824849740,0.2,192.9,192.89,0.7]
[1761824850060,0.2,192.9,192.88,56.91149556]
[1761824851164,0.85,192.9,192.88,56.91149556]
[1761824851345,0.85,192.9,192.85,56.91149556]
[1761824851554,0.65,192.89,192.85,56.91149556]
[1761824851861,0.65,192.89,192.8,56.91149556]
[1761824852765,0.65,192.89,192.81,0.7]
[1761824853279,0.65,192.89,192.82,0.66077997]
[1761824853588,0.65,192.89,192.83,21.292]
[1761824853943,0.65,192.89,192.83,20.592]
[1761824854144,0.65,192.89,192.83,21.292]
[1761824854366,0.2,192.9,192.84,1.36072618]
[1761824854643,0.2,192.9,192.84,57.75365713]
[1761824855060,0.85,192.9,192.84,57.75365713]
[1761824855683,0.85,192.9,192.85,0.7]
[1761824857149,0.2,192.9,192.84,57.05365713]
[1761824857350,0.65,192.89,192.84,57.75365713]
[1761824857671,0.2,192.9,192.85,0.7]
[1761824858167,0.2,192.9,192.85,57.61149556]
[1761824858351,0.85,192.9,192.85,57.61149556]
[1761824858757,0.85,192.9,192.85,56.91149556]
[1761824858956,0.85,192.9,192.85,57.61149556]
[1761824859974,0.2,192.9,192.86,0.7]
[1761824862675,0.2,192.9,192.87,0.14216157]
[1761824862879,0.1,192.99,192.91,56.71149556]
[1761824863067,0.65,192.97,192.91,56.71149556]
[1761824867873,5.83221116,192.97,192.91,56.71149556]
[1761824868272,0.65,192.96,192.91,56.71149556]
[1761824868978,0.65,192.96,192.91,57.41149556]
[1761824871074,0.65,192.96,192.91,56.71149556]
[1761824871571,5.28163175,192.99,192.92,0.7]
[1761824871572,0.65,192.98,192.92,0.7]
[1761824872171,0.65,192.98,192.91,56.71149556]
[1761824872789,5.83201461,192.98,192.91,56.71149556]
[1761824873182,0.69,192.97,192.91,56.71149556]
[1761824875289,0.69,192.97,192.92,0.68]
[1761824875480,0.69,192.97,192.91,56.71149556]
[1761824878481,5.87221089,192.97,192.91,56.71149556]
[1761824878789,3.8789147,192.96,192.91,56.71149556]
[1761824878989,5.18295843,192.94,192.91,56.71149556]
[1761824879174,0.69,192.93,192.91,56.71149556]
[1761824879576,0.69,192.93,192.87,77.30349556]
[1761824879775,0.69,192.93,192.87,56.71149556]
[1761824880395,0.69,192.93,192.85,56.71149556]
[1761824880598,3.88024511,192.92,192.8,0.68]
[1761824880907,9.93098926,192.9,192.74,57.23032922]
[1761824881193,22.02590084,192.89,192.75,0.68]
[1761824881399,3.88084408,192.88,192.76,0.14216157]
[1761824881570,3.88084408,192.87,192.77,20.592]
[1761824881775,24.47284408,192.86,192.75,0.68]
[1761824881984,3.88084408,192.85,192.75,0.68]
[1761824882194,0.69,192.85,192.75,0.68]
[1761824882396,0.69,192.84,192.75,0.68]
[1761824884583,5.87568025,192.84,192.75,0.68]
[1761824885094,0.69,192.83,192.75,0.68]
[1761824885703,0.69,192.83,192.75,57.39149556]
[1761824886085,0.69,192.83,192.76,0.68]
[1761824886697,0.69,192.86,192.78,20.592]
[1761824886901,0.69,192.86,192.79,0.68]
[1761824887095,0.69,192.88,192.8,10.44966145]
[1761824887405,4.55851167,192.94,192.83,20.592]
[1761824887612,5.87295843,192.94,192.84,0.82216157]
[1761824887810,0.69,192.93,192.84,57.53365713]
[1761824889108,5.87348597,192.93,192.84,56.71149556]
[1761824889506,0.69,192.92,192.84,56.71149556]
[1761824890095,0.69,192.92,192.85,1.19853772]
[1761824890313,0.69,192.92,192.85,0.68]
[1761824890486,0.69,192.92,192.86,0.68]
[1761824890902,0.69,192.92,192.84,57.39149556]
[1761824892196,0.69,192.92,192.85,0.68]
[1761824892716,5.18296483,192.94,192.85,57.91003328]
[1761824892717,0.69,192.94,192.85,57.91003328]
[1761824892924,0.69,192.93,192.85,57.91003328]
[1761824893212,0.69,192.93,192.86,0.68]
[1761824893814,0.7,192.94,192.86,0.68]
[1761824894022,0.7,192.94,192.85,56.71149556]
[1761824894700,0.7,192.94,192.83,21.272]
[1761824894701,0.7,192.94,192.83,77.30349556]
[1761824895098,18.14129476,192.93,192.83,77.30349556]
[1761824895297,18.14129476,192.93,192.83,56.71149556]
[1761824895499,18.14129476,192.93,192.81,56.71149556]
[1761824895500,20.592,192.89,192.81,56.71149556]
[1761824895807,20.592,192.89,192.79,56.71149556]
[1761824895997,0.7,192.88,192.79,56.71149556]
[1761824897204,5.8846033,192.88,192.79,56.71149556]
[1761824897411,5.8846033,192.88,192.8,0.68]
[1761824897606,0.7,192.87,192.8,0.68]
[1761824898341,0.7,192.88,192.8,0.68]
[1761824898505,0.7,192.87,192.8,0.68]
[1761824899100,0.7,192.87,192.8,57.39149556]
[1761824900322,5.88485174,192.87,192.8,57.39149556]
[1761824900922,0.7,192.86,192.8,57.39149556]
[1761824902150,0.7,192.86,192.81,0.68]
[1761824902934,0.72,192.89,192.81,0.68]
[1761824903248,0.72,192.89,192.81,57.39149556]
[1761824903447,0.72,192.89,192.82,0.66]
[1761824904047,5.90435897,192.89,192.82,0.66]
[1761824904429,0.72,192.88,192.82,0.66]
[1761824905840,5.90458854,192.88,192.82,0.66]
[1761824906454,0.72,192.87,192.81,56.71149556]
[1761824907635,0.72,192.87,192.81,57.37149556]
[1761824908250,5.90495521,192.87,192.81,57.37149556]
[1761824909849,0.72,192.86,192.81,56.71149556]
[1761824911956,5.18537723,192.85,192.81,56.71149556]
[1761824912456,0.72,192.84,192.81,56.71149556]
[1761824913450,5.90575092,192.84,192.81,56.71149556]
[1761824913841,0.72,192.83,192.81,56.71149556]
[1761824916476,5.90594484,192.83,192.81,56.71149556]
[1761824917079,0.72,192.82,192.81,56.71149556]